{"text_format":"1","workbook":"xlsx","n_sheets":3,"sheets":["Sheet1","Sheet2","Sheet3"],"not_rendered":{"charts":0,"images":0,"macros":1,"external_links":0,"defined_names":0,"comments":1,"pivot_tables":0},"unopened":[],"bounds":{"document_bytes":16777216,"sheet_cells":100000,"rows_first":2000,"rows_last":500,"rows_between":2000,"halvings":0,"cell_chars":16384,"cell_head_chars":4096},"cells_cut":0,"cells_raw":0,"read":"whole","date_system":"1900"}

{"sheet":"Sheet1","index":0,"n_rows":5,"n_cols":15,"rows_kept":5,"cut":false,"hidden":false,"merged":[]}
["التاريخ","العميل","نوع السند","رقم السند","مدين","دائن",null,"ملاحظة",null,null,null,null,null,"خالد","رصيد بداية المدة"]
["2018-05-17","خالد","رصيد بداية المدة",1,70,0,null,"دفعة",{"$f":"C2&D2","v":"رصيد بداية المدة1"},null,null,null,null,"محمد","سند قبض"]
["2018-05-17","محمد","رصيد بداية المدة",2,30,0,null,"دفعة",{"$f":"C3&D3","v":"رصيد بداية المدة2"},null,null,null,null,"احمد","فاتورة"]
["2018-05-17","خالد","رصيد بداية المدة",3,70,0,null,"دفعة","رصيد بداية المدة3"]
["2018-05-17","خالد","رصيد بداية المدة",4,70,0,null,"دفعة","رصيد بداية المدة4"]

{"sheet":"Sheet2","index":1,"n_rows":100,"n_cols":9,"rows_kept":100,"cut":false,"hidden":false,"merged":[]}
["التاريخ","العميل","نوع السند","رقم المستند","مدين","دائن","الرصيد","ملاحظة"]
["2018-05-17","خالد","سند قبض",1,70,0,70,"دفعة",{"$f":"C2&D2","v":"سند قبض1"}]
["2018-05-17","محمد","سند قبض",2,30,0,30,"دفعة",{"$f":"C3&D3","v":"سند قبض2"}]
["2018-05-17","خالد","سند قبض",3,70,0,140,"دفعة","سند قبض3"]
["2018-05-17","خالد","سند قبض",4,70,0,210,"دفعة","سند قبض4"]
["2018-05-17","خالد","رصيد بداية المدة",1,70,0,280,"دفعة","رصيد بداية المدة1"]
["2018-05-17","محمد","رصيد بداية المدة",2,30,0,60,"دفعة","رصيد بداية المدة2"]
["2018-05-17","خالد","رصيد بداية المدة",3,70,0,350,"دفعة","رصيد بداية المدة3"]
["2018-05-17","خالد","رصيد بداية المدة",4,70,0,420,"دفعة","رصيد بداية المدة4"]
[null,null,null,null,null,null,null,null,""]
[null,null,null,null,null,null,null,null,""]
[null,null,null,null,null,null,null,null,""]
[null,null,null,null,null,null,null,null,""]
[null,null,null,null,null,null,null,null,""]
[null,null,null,null,null,null,null,null,""]
[null,null,null,null,null,null,null,null,""]
[null,null,null,null,null,null,null,null,""]
[null,null,null,null,null,null,null,null,""]
[null,null,null,null,null,null,null,null,""]
[null,null,null,null,null,null,null,null,""]
[null,null,null,null,null,null,null,null,""]
[null,null,null,null,null,null,null,null,""]
[null,null,null,null,null,null,null,null,""]
[null,null,null,null,null,null,null,null,""]
[null,null,null,null,null,null,null,null,""]
[null,null,null,null,null,null,null,null,""]
[null,null,null,null,null,null,null,null,""]
[null,null,null,null,null,null,null,null,""]
[null,null,null,null,null,null,null,null,""]
[null,null,null,null,null,null,null,null,""]
[null,null,null,null,null,null,null,null,""]
[null,null,null,null,null,null,null,null,""]
[null,null,null,null,null,null,null,null,""]
[null,null,null,null,null,null,null,null,""]
[null,null,null,null,null,null,null,null,""]
[null,null,null,null,null,null,null,null,""]
[null,null,null,null,null,null,null,null,""]
[null,null,null,null,null,null,null,null,""]
[null,null,null,null,null,null,null,null,""]
[null,null,null,null,null,null,null,null,""]
[null,null,null,null,null,null,null,null,""]
[null,null,null,null,null,null,null,null,""]
[null,null,null,null,null,null,null,null,""]
[null,null,null,null,null,null,null,null,""]
[null,null,null,null,null,null,null,null,""]
[null,null,null,null,null,null,null,null,""]
[null,null,null,null,null,null,null,null,""]
[null,null,null,null,null,null,null,null,""]
[null,null,null,null,null,null,null,null,""]
[null,null,null,null,null,null,null,null,""]
[null,null,null,null,null,null,null,null,""]
[null,null,null,null,null,null,null,null,""]
[null,null,null,null,null,null,null,null,""]
[null,null,null,null,null,null,null,null,""]
[null,null,null,null,null,null,null,null,""]
[null,null,null,null,null,null,null,null,""]
[null,null,null,null,null,null,null,null,""]
[null,null,null,null,null,null,null,null,""]
[null,null,null,null,null,null,null,null,""]
[null,null,null,null,null,null,null,null,""]
[null,null,null,null,null,null,null,null,""]
[null,null,null,null,null,null,null,null,""]
[null,null,null,null,null,null,null,null,""]
[null,null,null,null,null,null,null,null,""]
[null,null,null,null,null,null,null,null,""]
[null,null,null,null,null,null,null,null,""]
[null,null,null,null,null,null,null,null,{"$f":"C67&D67","v":""}]
[null,null,null,null,null,null,null,null,""]
[null,null,null,null,null,null,null,null,""]
[null,null,null,null,null,null,null,null,""]
[null,null,null,null,null,null,null,null,""]
[null,null,null,null,null,null,null,null,""]
[null,null,null,null,null,null,null,null,""]
[null,null,null,null,null,null,null,null,""]
[null,null,null,null,null,null,null,null,""]
[null,null,null,null,null,null,null,null,""]
[null,null,null,null,null,null,null,null,""]
[null,null,null,null,null,null,null,null,""]
[null,null,null,null,null,null,null,null,""]
[null,null,null,null,null,null,null,null,""]
[null,null,null,null,null,null,null,null,""]
[null,null,null,null,null,null,null,null,""]
[null,null,null,null,null,null,null,null,""]
[null,null,null,null,null,null,null,null,""]
[null,null,null,null,null,null,null,null,""]
[null,null,null,null,null,null,null,null,""]
[null,null,null,null,null,null,null,null,""]
[null,null,null,null,null,null,null,null,""]
[null,null,null,null,null,null,null,null,""]
[null,null,null,null,null,null,null,null,""]
[null,null,null,null,null,null,null,null,""]
[null,null,null,null,null,null,null,null,""]
[null,null,null,null,null,null,null,null,""]
[null,null,null,null,null,null,null,null,""]
[null,null,null,null,null,null,null,null,""]
[null,null,null,null,null,null,null,null,""]
[null,null,null,null,null,null,null,null,""]
[null,null,null,null,null,null,null,null,""]
[null,null,null,null,null,null,null,null,""]
[null,null,null,null,null,null,null,null,""]

{"sheet":"Sheet3","index":2,"n_rows":14,"n_cols":10,"rows_kept":14,"cut":false,"hidden":false,"merged":[[2,2,3,2],[2,3,3,5]]}
[]
[]
[null,null,"اسم العميل","خالد",null,null,null,null,"تاريخ البداية ",{"$f":"IF(K3<>\"\",K3,TODAY()-DAY(EOMONTH(TODAY(),0)))","v":"2018-04-24"}]
[null,null,null,null,null,null,null,null,"تاريخ النهاية",{"$f":"IF(K4<>\"\",K4,TODAY())","v":"2018-05-25"}]
[]
[]
[]
[null,null,"التاريخ","العميل","نوع السند","رقم المستند","مدين","دائن","الرصيد","ملاحظة"]
[null,null,"2018-05-17","خالد","رصيد بداية المدة",1,0,70,-70,"دفعة"]
[null,null,"2018-05-17","خالد","رصيد بداية المدة",3,0,70,-140,"دفعة"]
[null,null,"2018-05-17","خالد","رصيد بداية المدة",4,0,70,-210,"دفعة"]
[null,null,"2018-05-17","خالد","رصيد بداية المدة",1,70,0,-140,"دفعة"]
[null,null,"2018-05-17","خالد","رصيد بداية المدة",3,70,0,-70,"دفعة"]
[null,null,"2018-05-17","خالد","رصيد بداية المدة",4,70,0,0,"دفعة"]